bitfinex/quotes_SOLUSD_20250814
["timestamp","ask_amount","ask_price","bid_price","bid_amount"]
[1755180047269,0.06,194.88,194.87,58.40621557]
[1755180047480,0.06,194.88,194.79,12.83432228]
[1755180047481,31.85136288,194.88,194.8,0.51334702]
[1755180047708,31.85136288,194.88,194.79,0.71]
[1755180047709,31.85136288,194.88,194.81,58.40621557]
[1755180047992,31.85136288,194.88,194.83,15.10621557]
[1755180048192,0.66,194.87,194.84,43.3]
[1755180048398,0.66,194.87,194.77,18.10608736]
[1755180048399,0.66,194.87,194.78,15.10621557]
[1755180048693,0.66,194.87,194.8,15.10621557]
[1755180049477,26.0,194.83,194.8,15.10621557]
[1755180051387,0.06,194.88,194.83,15.10621557]
[1755180051717,0.72,194.88,194.85,15.10621557]
[1755180051879,26.0,194.87,194.85,15.10621557]
[1755180052200,0.06,194.88,194.85,15.10621557]
[1755180052377,26.0,194.87,194.85,15.10621557]
[1755180052580,0.06,194.88,194.85,15.10621557]
[1755180053209,0.06,194.88,194.85,21.46154782]
[1755180053382,0.06,194.88,194.87,33.21230293]
[1755180053582,0.06,194.9,194.88,15.10621557]
[1755180053788,0.06,194.99,194.9,15.10621557]
[1755180053989,26.06,194.99,194.91,77.66536023]
[1755180054191,31.84851214,194.99,194.91,58.36621557]
[1755180054688,5.84851214,194.99,194.91,76.47230293]
[1755180054884,0.06,194.99,194.91,77.15230293]
[1755180055199,26.0,194.97,194.91,77.15230293]
[1755180055409,0.06,194.99,194.91,77.15230293]
[1755180055585,0.06,194.99,194.91,82.28287601]
[1755180055788,0.72,194.99,194.91,58.36621557]
[1755180055988,26.0,194.98,194.91,76.47230293]
[1755180056218,0.06,194.99,194.92,15.10621557]
[1755180056515,0.06,194.99,194.93,34.40530759]
[1755180056691,0.06,194.99,194.93,16.29922023]
[1755180057003,0.06,194.99,194.93,272.95922023]
[1755180057187,0.06,194.99,194.93,290.55230293]
[1755180057384,0.06,194.99,194.93,291.23230293]
[1755180057592,0.06,194.99,194.93,296.36234961]
[1755180058011,0.06,194.99,194.94,15.10621557]
[1755180058219,0.06,194.99,194.98,15.10621557]
[1755180058418,0.06,194.99,194.98,58.34621557]
[1755180058799,0.72,194.99,194.98,58.34621557]
[1755180058996,0.72,194.99,194.92,97.80608736]
[1755180059198,0.72,194.99,194.93,58.32621557]
[1755180059795,5.12873115,194.98,194.93,58.32621557]
[1755180059992,5.78873115,194.98,194.93,58.32621557]
[1755180060226,26.0,194.95,194.89,79.7]
[1755180060533,26.0,194.95,194.83,0.03]
[1755180060534,1.17216389,194.94,194.83,0.03]
[1755180060694,0.72,194.93,194.84,43.2]
[1755180060894,0.51216389,194.92,194.83,0.03]
[1755180061115,26.0,194.89,194.83,0.03]
[1755180061312,0.51216389,194.88,194.84,43.2]
[1755180061598,0.72,194.87,194.84,43.2]
[1755180061922,5.13188956,194.86,194.85,15.10621557]
[1755180062095,0.72,194.86,194.85,15.10621557]
[1755180062297,5.85057308,194.91,194.85,33.21230293]
[1755180062609,26.0,194.88,194.85,15.10621557]
[1755180062997,5.85057308,194.91,194.85,33.21230293]
[1755180063203,5.12983741,194.94,194.87,33.21230293]
[1755180063412,5.12983741,194.94,194.89,15.10621557]
[1755180063616,0.72,194.93,194.89,15.10621557]
[1755180063796,5.12983741,194.94,194.89,15.10621557]
[1755180063998,0.51216389,195.01,194.91,33.21230293]
[1755180063999,0.78,195.0,194.91,33.21230293]
[1755180064198,0.78,195.0,194.95,15.10621557]
[1755180064524,26.0,194.96,194.85,0.66]
[1755180064715,0.72,194.95,194.87,15.10621557]
[1755180065116,0.72,194.95,194.89,33.21230293]
[1755180065315,0.72,194.95,194.91,15.10621557]
[1755180065511,26.0,194.96,194.91,15.10621557]
[1755180066007,0.72,194.98,194.91,15.10621557]
[1755180066008,5.84896283,194.98,194.91,33.21230293]
[1755180066326,0.06,194.99,194.96,18.10608736]
[1755180066499,0.06,194.99,194.92,0.51303098]
[1755180066500,0.06,194.99,194.97,76.39230293]
[1755180066693,0.06,194.99,194.98,33.21230293]
[1755180066932,11.11755255,194.99,194.98,58.28621557]
[1755180067227,0.06,194.99,194.98,58.28621557]
[1755180067396,0.06,194.99,194.98,76.39230293]
[1755180067597,0.06,195.04,195.01,41.10621557]
[1755180067802,3.77896554,195.14,195.04,15.10621557]
[1755180068008,7.2005874,195.15,195.12,15.10621557]
[1755180068009,2.051019,195.15,195.12,15.10621557]
[1755180068300,2.051019,195.15,195.11,18.10608736]
[1755180068301,2.051019,195.15,195.14,15.10621557]
[1755180068753,2.051019,195.15,195.14,33.21230293]
[1755180069235,2.051019,195.15,195.14,58.26621557]
[1755180069399,7.89528238,195.15,195.05,15.10621557]
[1755180069599,26.0,195.12,195.07,15.10621557]
[1755180069822,26.72,195.12,195.07,15.10621557]
[1755180070025,26.0,195.09,195.07,15.10621557]
[1755180070199,26.0,195.09,195.08,58.24621557]
[1755180070401,26.0,195.09,194.99,33.82]
[1755180070402,26.72,195.09,194.99,33.82]
[1755180070705,26.72,195.09,194.88,4.13136188]
[1755180070706,31.00918323,195.08,194.88,4.13136188]
[1755180070910,4.49755224,195.07,194.92,18.10608736]
[1755180071119,0.51216389,195.06,194.94,18.10608736]
[1755180071321,4.50107594,195.05,194.95,43.12]
[1755180071534,26.0,195.01,194.95,43.12]
[1755180071700,1.23216389,195.0,194.87,18.10608736]
[1755180072026,26.0,194.96,194.88,61.22608736]
[1755180072198,26.0,194.96,194.9,18.10608736]
[1755180072395,26.0,194.96,194.89,18.10608736]
[1755180072941,26.0,194.96,194.89,15.10621557]
[1755180073544,26.0,194.92,194.89,15.10621557]
[1755180074410,31.8492749,194.96,194.89,15.10621557]
[1755180075917,3.79586768,194.95,194.89,15.10621557]
[1755180076131,31.8492749,194.96,194.89,15.10621557]
[1755180076307,31.8492749,194.96,194.89,33.21230293]
[1755180076817,31.8492749,194.96,194.89,15.10621557]
[1755180077611,0.72,194.96,194.89,38.3432648]
[1755180077813,26.72,194.96,194.89,15.10621557]
[1755180078128,3.79641742,194.95,194.89,15.10621557]
[1755180078332,31.84943994,194.96,194.89,15.10621557]
[1755180078833,0.72,194.95,194.89,15.10621557]
[1755180079605,5.12978352,194.94,194.89,15.10621557]
[1755180079837,26.0,194.92,194.89,15.10621557]
[1755180080826,26.0,194.96,194.92,15.10621557]
[1755180081028,26.0,194.96,194.94,15.10621557]
[1755180081335,26.0,194.98,194.94,15.10621557]
[1755180081718,26.0,194.96,194.94,15.10621557]
[1755180082103,0.72,195.03,194.94,38.34206776]
[1755180082518,0.72,195.03,194.98,15.10621557]
[1755180082729,5.12689054,195.05,194.99,43.06]
[1755180082928,5.12689054,195.05,195.0,15.10621557]
[1755180083130,0.72,195.04,195.0,15.10621557]
[1755180083316,0.72,195.07,195.0,15.10621557]
[1755180083516,26.0,195.03,195.0,15.10621557]
[1755180083840,0.72,195.08,195.01,15.10621557]
[1755180084032,0.72,195.08,195.01,33.21230293]
[1755180084532,0.72,195.12,195.04,15.10621557]
[1755180084837,0.72,195.12,195.06,15.10621557]
[1755180085006,0.72,195.12,195.07,43.04]
[1755180085507,5.84531392,195.11,195.07,43.04]
[1755180085822,26.0,195.08,195.07,58.14621557]
[1755180086137,5.12507936,195.12,195.08,15.10621557]
[1755180086348,0.72,195.11,195.08,15.10621557]
[1755180086628,26.0,195.09,195.08,15.10621557]
[1755180087417,5.84532533,195.11,195.08,15.10621557]
[1755180087627,0.72,195.1,195.08,15.10621557]
[1755180087835,26.0,195.08,194.93,0.56]
[1755180088131,5.02573561,195.07,194.94,43.02]
[1755180088327,4.51418103,195.06,194.94,43.02]
[1755180088546,5.02634492,195.05,194.94,43.02]
[1755180088850,0.72,195.05,194.96,33.21230293]
[1755180089019,0.72,195.05,194.97,18.10608736]
[1755180089216,0.72,195.05,194.98,58.10621557]
[1755180089433,0.72,195.05,195.0,15.10621557]
[1755180089638,5.84583935,195.09,195.02,15.10621557]
[1755180089820,5.84583935,195.09,195.04,15.10621557]
[1755180090021,0.72,195.08,195.04,15.10621557]
[1755180090238,0.78,195.12,195.04,15.10621557]
[1755180090446,18.7178996,195.12,195.04,15.10621557]
[1755180090822,5.90527148,195.12,195.04,15.10621557]
[1755180091259,5.90527148,195.12,195.06,15.10621557]
[1755180091558,0.69,195.11,195.08,15.10621557]
[1755180092351,0.69,195.1,195.08,15.10621557]
[1755180093131,0.51216389,195.09,194.96,0.56]
[1755180093447,26.0,195.04,195.0,15.10621557]
[1755180093631,26.0,195.04,195.02,15.10621557]
[1755180093954,26.0,195.08,195.02,33.21230293]
[1755180094162,26.0,195.08,195.05,15.10621557]
[1755180094341,26.0,195.08,195.07,15.10621557]
[1755180094659,26.0,195.09,195.07,15.10621557]
[1755180095149,26.69,195.09,195.07,15.10621557]
[1755180095350,26.0,195.09,195.07,15.10621557]
[1755180095534,26.0,195.1,195.07,15.10621557]
[1755180096053,26.06,195.12,195.07,15.10621557]
[1755180096250,0.06,195.12,195.07,15.10621557]
[1755180096450,0.06,195.12,195.03,33.8]
[1755180096451,0.69,195.11,195.03,33.8]
[1755180096655,26.0,195.09,195.04,58.04621557]
[1755180097025,26.0,195.09,195.06,15.10621557]
[1755180097425,26.06,195.12,195.07,15.10621557]
[1755180097644,0.69,195.11,195.08,42.94]
[1755180097957,1.20216389,195.11,195.08,42.94]
[1755180098149,3.79781192,195.1,195.04,15.10621557]
[1755180098350,1.20216389,195.09,195.04,15.10621557]
[1755180098652,1.20216389,195.09,195.03,33.8]
[1755180098653,4.48932864,195.08,195.03,33.8]
[1755180098826,26.0,195.04,195.03,48.90621557]
[1755180099032,26.69,195.04,195.03,48.90621557]
[1755180099244,26.69,195.04,195.03,33.8]
[1755180099452,4.49020525,195.04,195.03,76.72]
[1755180099647,9.61735865,195.04,195.03,76.72]
[1755180099939,26.0,195.01,194.9,33.8]
[1755180100138,1.20216389,195.0,194.9,33.8]
[1755180100335,26.0,194.97,194.9,33.8]
[1755180100536,0.69,194.96,194.9,33.8]
[1755180100854,0.69,194.96,194.91,15.10621557]
[1755180101026,0.51216389,195.0,194.91,15.10621557]
[1755180101227,0.69,194.99,194.93,15.10621557]
[1755180101543,26.0,194.96,194.93,15.10621557]
[1755180101945,26.0,194.96,194.93,20.23625891]
[1755180102146,26.0,194.98,194.96,15.10621557]
[1755180102331,5.1279792,195.01,194.98,15.10621557]
[1755180102543,26.0,194.99,194.98,15.10621557]
[1755180103051,5.1279792,195.01,194.98,15.10621557]
[1755180103261,26.0,194.99,194.98,15.10621557]
[1755180103554,0.69,195.05,194.98,94.80621557]
[1755180103758,5.81711483,195.05,194.98,94.80621557]
[1755180104144,26.0,195.02,194.98,94.80621557]
[1755180104554,26.69,195.02,194.98,94.80621557]
[1755180104938,26.0,195.02,194.98,94.80621557]
[1755180105362,26.0,195.04,194.98,94.80621557]
[1755180105658,1.20216389,195.06,195.0,15.10621557]
[1755180105659,0.69,195.06,195.0,15.10621557]
[1755180105869,5.12583935,195.09,195.02,15.10621557]
[1755180106159,5.81561034,195.1,195.02,33.21230293]
[1755180106336,26.0,195.07,195.02,15.10621557]
[1755180106541,26.69,195.07,195.02,15.10621557]
[1755180106748,26.69,195.07,195.04,15.10621557]
[1755180106948,0.69,195.1,195.04,15.10621557]
[1755180107162,5.8155832,195.1,195.04,15.10621557]
[1755180107347,0.69,195.1,195.04,15.10621557]
[1755180107541,26.0,195.07,195.04,15.10621557]
[1755180107763,5.18528196,195.12,195.06,15.10621557]
[1755180108070,5.18528196,195.12,195.05,18.66608736]
[1755180108071,0.06,195.12,195.08,15.10621557]
[1755180108370,0.06,195.12,195.11,33.21230293]
[1755180108674,0.06,195.12,195.11,57.96621557]
[1755180109173,0.75,195.12,195.11,57.96621557]
[1755180109543,0.06,195.12,195.11,57.96621557]
[1755180109746,0.75,195.12,195.11,57.96621557]
[1755180110370,26.06,195.12,195.11,57.96621557]
[1755180110667,26.75,195.12,195.11,57.96621557]
[1755180111048,0.75,195.12,195.11,15.10621557]
[1755180111437,26.06,195.12,195.11,57.94621557]
[1755180111768,0.06,195.12,195.11,57.94621557]
[1755180112371,0.75,195.12,195.11,57.94621557]
[1755180112663,5.87505125,195.12,195.11,57.94621557]
[1755180113056,5.87505125,195.12,195.11,15.10621557]
[1755180113260,5.87505125,195.12,195.11,57.92621557]
[1755180114342,5.87505125,195.12,195.11,57.90621557]
[1755180117447,5.18505125,195.12,195.11,57.90621557]
[1755180117648,5.18505125,195.12,195.11,15.10621557]
[1755180117970,5.87505125,195.12,195.11,57.88621557]
[1755180118155,5.87505125,195.12,195.11,15.10621557]
[1755180118347,5.87505125,195.12,195.11,57.86621557]
[1755180119159,18.68767937,195.12,195.03,33.8]
[1755180119471,18.68767937,195.12,195.01,0.56]
[1755180119472,26.0,195.09,194.96,11.6976262]
[1755180119653,5.00948851,195.08,194.96,11.6976262]
[1755180119972,3.80732462,195.07,194.95,34.36]
[1755180120146,26.0,195.04,194.95,34.36]
[1755180120344,26.0,195.0,194.96,42.76]
[1755180120561,0.7,195.06,194.97,12.2576262]
[1755180120759,26.0,195.03,194.95,33.8]
[1755180120942,26.0,195.01,194.96,42.76]
[1755180121145,26.0,195.01,194.98,15.10621557]
[1755180121346,26.0,195.01,194.96,60.92807544]
[1755180121347,26.0,195.01,195.0,15.10621557]
[1755180122256,26.7,195.01,194.95,33.8]
[1755180122455,26.7,195.01,194.96,57.84621557]
[1755180122661,1.21216389,195.0,194.96,57.84621557]
[1755180122863,0.7,195.0,194.96,57.84621557]
[1755180123071,5.82846812,194.99,194.96,57.84621557]
[1755180123373,0.51216389,195.03,194.96,57.84621557]
[1755180123672,4.51348023,195.02,194.97,42.74]
[1755180123880,1.21216389,195.01,194.97,42.74]
[1755180124175,0.7,195.0,194.97,42.74]
[1755180124471,0.51216389,195.04,194.98,15.10621557]
[1755180124644,0.7,195.02,194.98,15.10621557]
[1755180124848,0.7,195.01,194.98,15.10621557]
[1755180125088,5.1271534,195.04,194.98,15.66621557]
[1755180125289,5.12667089,195.06,194.98,38.9629417]
[1755180125460,5.12667089,195.06,194.99,15.10621557]
[1755180125765,0.51216389,195.05,195.01,15.10621557]
[1755180126089,0.7,195.04,195.01,15.10621557]
[1755180126255,26.0,195.03,195.01,15.10621557]
[1755180126455,0.06,195.1,195.03,15.10621557]
[1755180126763,0.06,195.1,195.05,15.10621557]
[1755180126958,0.06,195.1,195.09,15.10621557]
[1755180127262,0.06,195.1,195.09,57.80621557]
[1755180127462,0.76,195.1,195.01,15.10621557]
[1755180127679,0.76,195.1,195.0,5.12820512]
[1755180127680,0.76,195.1,195.03,15.10621557]
[1755180127980,0.51216389,195.09,195.03,15.10621557]
[1755180128578,0.7,195.08,195.03,15.10621557]
[1755180128796,1.21216389,195.07,195.03,15.10621557]
[1755180128967,0.7,195.06,195.03,15.10621557]
[1755180129173,26.0,195.02,194.98,15.10621557]
[1755180129375,26.0,195.02,195.0,15.10621557]
[1755180130471,26.0,195.05,195.0,15.10621557]
[1755180130778,26.0,195.01,194.96,15.10621557]
[1755180130976,26.0,195.01,194.98,15.10621557]
[1755180130977,0.7,195.0,194.98,15.10621557]
[1755180131477,0.7,195.0,194.95,33.8]
[1755180131478,1.21216389,194.99,194.95,33.8]
[1755180131679,26.0,194.96,194.95,33.8]
[1755180131881,26.0,194.94,194.88,0.03]
[1755180132082,5.03083382,194.93,194.88,0.03]
[1755180132264,0.7,194.92,194.88,1e-08]
[1755180132469,5.13109959,194.89,194.88,1e-08]
[1755180132671,10.15860536,194.89,194.84,0.03]
[1755180133001,26.0,194.83,194.81,42.66]
[1755180133173,26.0,194.81,194.65,73.92380982]
[1755180133370,1.21216389,194.8,194.65,34.5]
[1755180133573,26.0,194.77,194.65,34.5]
[1755180133773,0.51216389,194.76,194.65,34.5]
[1755180133987,26.7,194.77,194.67,18.16807544]
[1755180134178,26.7,194.8,194.68,18.84807544]
[1755180134379,26.0,194.8,194.72,15.10621557]
[1755180134583,0.51216389,194.79,194.72,15.10621557]
[1755180134780,26.0,194.8,194.72,15.10621557]
[1755180134981,26.0,194.8,194.74,15.10621557]
[1755180135184,10.32524756,194.83,194.76,15.10621557]
[1755180135185,5.08834406,194.83,194.76,15.10621557]
[1755180135402,5.13109959,194.89,194.78,15.10621557]
[1755180135575,0.51216389,194.88,194.78,15.10621557]
[1755180135907,0.51216389,194.88,194.75,42.64]
[1755180135908,5.21356141,194.88,194.82,33.27429101]
[1755180136203,0.7,194.95,194.84,15.10621557]
[1755180136503,1.21216389,194.94,194.86,15.10621557]
[1755180136707,0.51216389,194.93,194.86,15.10621557]
[1755180136996,9.53161232,194.94,194.86,15.10621557]
[1755180137205,4.40182832,194.94,194.86,20.23805841]
[1755180137371,5.12873115,194.98,194.88,15.10621557]
[1755180137571,0.7,194.99,194.9,33.27429101]
[1755180137768,0.7,194.99,194.92,33.27429101]
[1755180137769,5.14406686,194.99,194.92,33.27429101]
[1755180137973,0.7,195.03,194.94,18.16807544]
[1755180138174,1.21216389,195.07,194.97,15.10621557]
[1755180138404,6.33852878,195.07,194.99,15.10621557]
[1755180138566,26.0,195.04,194.99,15.10621557]
[1755180138770,1.21216389,195.03,194.99,15.10621557]
[1755180138974,1.21216389,195.03,195.0,42.62]
[1755180139205,0.7,195.02,195.0,42.62]
[1755180139498,1.21216389,195.01,195.0,42.62]
[1755180140680,6.34010604,195.01,195.0,42.62]
[1755180141005,26.0,194.98,194.89,15.10621557]
[1755180141177,1.21216389,194.97,194.89,15.10621557]
[1755180141374,1.21216389,194.97,194.87,15.10621557]
[1755180141606,0.7,194.96,194.87,15.10621557]
[1755180141773,0.51216389,194.95,194.89,15.10621557]
[1755180141975,26.0,194.98,194.89,33.27429101]
[1755180142196,5.82794215,195.01,194.91,33.27429101]
[1755180142499,5.12715989,195.04,194.97,15.10621557]
[1755180142707,5.12715989,195.04,194.99,15.10621557]
[1755180142904,0.7,195.07,194.99,15.10621557]
[1755180143207,1.21216389,195.07,194.99,15.78621557]
[1755180143577,0.51216389,195.07,194.99,15.78621557]
[1755180143919,6.33854957,195.07,194.95,15.61729807]
[1755180144101,26.0,195.04,194.97,15.10621557]
[1755180144289,0.51216389,195.03,194.97,15.10621557]
[1755180144583,26.0,194.99,194.97,15.10621557]
[1755180144797,0.7,194.98,194.84,33.82]
[1755180144986,1.21216389,194.98,194.89,15.38422]
[1755180145174,1.21216389,194.98,194.87,0.68]
[1755180145377,1.21216389,194.98,194.9,42.56]
[1755180145686,26.0,194.99,194.91,15.10621557]
[1755180146411,26.0,194.99,194.92,0.68]
[1755180146574,5.1271534,195.04,194.95,33.27429101]
[1755180146778,26.0,195.01,194.97,15.10621557]
[1755180147081,0.51216389,195.03,194.97,15.10621557]
[1755180147382,26.7,195.01,194.97,15.10621557]
[1755180147592,1.21216389,195.0,194.96,42.56]
[1755180147798,1.21216389,195.0,194.9,15.10621557]
[1755180148014,1.21216389,195.0,194.91,42.54]
[1755180148188,0.7,194.99,194.91,42.54]
[1755180148389,0.51216389,194.98,194.92,15.10621557]
[1755180148587,26.0,194.95,194.94,15.10621557]
[1755180149002,25.32,194.94,194.85,15.388167]
[1755180149183,25.83216389,194.94,194.86,57.64621557]
[1755180149801,24.83216389,194.94,194.86,57.64621557]
[1755180150105,25.02,194.94,194.86,57.64621557]
[1755180150307,0.51216389,194.93,194.86,57.64621557]
[1755180150507,18.66608454,194.92,194.86,57.64621557]
[1755180150716,0.51216389,194.91,194.86,57.64621557]
[1755180150885,0.71,194.9,194.86,57.64621557]
[1755180151098,1.22216389,194.89,194.86,42.54]
[1755180151402,0.51216389,194.91,194.87,15.10621557]
[1755180151599,18.66608454,194.92,194.87,15.10621557]
[1755180151600,19.17824843,194.92,194.87,15.10621557]
[1755180151790,26.0,194.89,194.86,42.54]
[1755180151990,26.71,194.89,194.86,42.54]
[1755180152189,26.0,194.89,194.86,42.54]
[1755180152596,5.13136288,194.88,194.86,42.54]
[1755180152801,0.71,194.87,194.86,57.64621557]
[1755180153020,5.13136288,194.88,194.86,42.54]
[1755180153893,1.22216389,194.91,194.87,15.10621557]
[1755180154093,5.12978352,194.94,194.87,15.10621557]
[1755180154300,5.64194741,194.94,194.87,15.10621557]
[1755180154828,5.12924246,194.97,194.89,15.10621557]
[1755180154993,0.06,194.98,194.91,15.10621557]
[1755180155317,5.70108176,194.98,194.91,15.10621557]
[1755180155502,26.0,194.95,194.91,15.10621557]
[1755180155904,1.22216389,194.94,194.92,42.5]
[1755180156204,1.22216389,194.94,194.87,15.10621557]
[1755180156515,1.22216389,194.94,194.85,15.10621557]
[1755180156713,26.0,194.9,194.85,15.10621557]
[1755180157093,26.71,194.9,194.85,15.10621557]
[1755180157417,26.71,194.9,194.87,15.10621557]
[1755180157586,26.0,194.9,194.87,15.10621557]
[1755180157791,26.71,194.9,194.87,15.10621557]
[1755180158904,6.35326348,194.89,194.86,42.48]
[1755180159111,5.64326348,194.89,194.87,42.46]
[1755180159298,5.13109959,194.89,194.87,42.46]
[1755180159513,5.84109959,194.89,194.87,42.46]
[1755180159896,0.51216389,194.88,194.87,42.46]
[1755180160213,5.13109959,194.89,194.87,42.46]
[1755180160401,5.6429974,194.91,194.88,15.10621557]
[1755180160717,5.13083351,194.91,194.88,15.10621557]
[1755180160922,5.84083351,194.91,194.88,15.10621557]
[1755180161127,5.13083351,194.91,194.89,42.46]
[1755180161322,5.13004668,194.93,194.9,15.10621557]
[1755180161499,1.22216389,194.92,194.89,42.46]
[1755180161700,26.0,194.9,194.89,42.46]
[1755180161894,27.22216389,194.9,194.86,15.10621557]
[1755180162105,27.22216389,194.9,194.84,33.82]
[1755180162106,0.71,194.89,194.87,42.44]
[1755180162308,0.51216389,194.88,194.87,42.44]
[1755180162524,0.51216389,194.88,194.84,33.82]
[1755180162525,26.0,194.85,194.84,33.82]
[1755180162740,26.71,194.85,194.84,33.82]
[1755180162919,31.84215293,194.85,194.79,0.03]
[1755180163123,1.22216389,194.84,194.79,0.03]
[1755180163313,0.51216389,194.84,194.79,0.03]
[1755180163516,26.0,194.81,194.79,0.03]
[1755180163715,1.22216389,194.8,194.79,1e-08]
[1755180163928,1.22216389,194.8,194.79,42.44000001]
[1755180164217,1.22216389,194.8,194.75,0.03]
[1755180164218,9.52912598,194.8,194.75,0.03]
[1755180164541,26.0,194.77,194.75,0.03]
[1755180164714,1.22216389,194.76,194.7,15.10621557]
[1755180164921,26.0,194.7,194.69,33.84]
[1755180165121,26.0,194.7,194.64,0.2]
[1755180165122,26.0,194.69,194.64,0.2]
[1755180165322,1.22216389,194.68,194.64,0.2]
[1755180165820,26.0,194.69,194.65,42.42]
[1755180166346,1.22216389,194.68,194.65,42.42]
[1755180166835,4.50292958,194.67,194.65,42.42]
[1755180167140,0.51216389,194.68,194.64,0.2]
[1755180167141,5.13663447,194.68,194.64,0.2]
[1755180167329,5.13640025,194.69,194.66,42.42]
[1755180167524,0.51216389,194.75,194.67,15.10621557]
[1755180167838,21.75999111,194.74,194.67,15.10621557]
[1755180168148,4.29975468,194.73,194.67,15.10621557]
[1755180168325,5.64721575,194.74,194.67,15.10621557]
[1755180168534,4.49517077,194.73,194.65,0.03]
[1755180168841,26.0,194.69,194.65,0.03]
[1755180169035,5.13689834,194.67,194.65,0.03]
[1755180169221,0.51216389,194.66,194.65,0.03]
[1755180169550,26.0,194.63,194.52,15.413466]
[1755180169715,0.51216389,194.62,194.53,0.66]
[1755180169914,26.0,194.63,194.56,15.10621557]
[1755180170133,26.0,194.64,194.58,33.27429101]
[1755180170344,26.0,194.64,194.6,15.10621557]
[1755180170640,0.51216389,194.63,194.59,42.4]
[1755180170948,26.0,194.58,194.55,33.84]
[1755180171621,26.0,194.58,194.46,15.418219]
[1755180171622,1.22216389,194.57,194.47,0.66]
[1755180171934,26.0,194.54,194.48,15.10621557]
[1755180172248,26.0,194.58,194.52,15.10621557]
[1755180172444,26.0,194.58,194.5,15.10621557]
[1755180172618,26.0,194.58,194.52,15.10621557]
[1755180172941,5.13819563,194.63,194.56,15.10621557]
[1755180173148,5.13759905,194.65,194.59,15.10621557]
[1755180173354,13.3517387,194.72,194.61,15.10621557]
[1755180173647,26.0,194.68,194.61,15.10621557]
[1755180173869,0.51216389,194.67,194.59,15.10621557]
[1755180174140,26.0,194.65,194.63,15.10621557]
[1755180174563,1.22216389,194.64,194.58,15.10621557]
[1755180174723,1.22216389,194.64,194.6,15.10621557]
[1755180175047,1.22216389,194.64,194.57,15.10621557]
[1755180175048,26.0,194.59,194.57,15.10621557]
[1755180175225,26.0,194.59,194.53,33.27429101]
[1755180175545,26.0,194.59,194.52,33.30429101]
[1755180175727,26.0,194.59,194.52,15.13621557]
[1755180176439,0.51216389,194.58,194.52,15.13621557]
[1755180176750,0.51216389,194.58,194.54,15.10621557]
[1755180176930,0.71,194.57,194.54,15.10621557]
[1755180177136,5.13980263,194.56,194.54,15.10621557]
[1755180177528,5.13980263,194.56,194.52,0.03]
[1755180177529,26.0,194.53,194.52,0.03]
[1755180177751,26.51216389,194.53,194.52,42.41]
[1755180177946,26.0,194.53,194.52,42.41]
[1755180178840,26.71,194.53,194.52,42.41]
[1755180179146,31.85059528,194.53,194.52,42.41]
[1755180179359,5.14059528,194.53,194.52,42.41]
[1755180179862,31.85059528,194.53,194.52,42.41]
[1755180180235,5.14059528,194.53,194.52,42.41]
[1755180180638,31.83059528,194.53,194.52,42.41]
[1755180180862,5.83059528,194.53,194.52,42.41]
[1755180181237,26.0,194.5,194.42,15.10621557]
[1755180181441,0.51216389,194.49,194.42,15.10621557]
[1755180181646,0.51216389,194.52,194.44,15.10621557]
[1755180181851,26.0,194.5,194.4,15.10621557]
[1755180182050,1.20216389,194.49,194.39,34.54]
[1755180182251,1.20216389,194.49,194.39,33.86]
[1755180182468,0.69,194.48,194.39,33.86]
[1755180182764,0.69,194.48,194.3,0.68]
[1755180182765,0.51216389,194.47,194.3,0.68]
[1755180182965,4.44065003,194.46,194.31,42.36]
[1755180183182,26.0,194.4,194.31,42.36]
[1755180183355,1.20216389,194.39,194.2,0.68]
[1755180183562,14.43661022,194.38,194.21,42.36]
[1755180183882,4.94877411,194.37,194.21,42.36]
[1755180184045,0.69,194.36,194.24,18.16807544]